bitfinex-derivatives/quotes_SOLF0:USTF0_20251224
["timestamp","ask_amount","ask_price","bid_price","bid_amount"]
[1766574063251,0.0586779,121.77,121.75,0.05540665]
[1766574075268,3.51,121.8,121.75,3.34540665]
[1766574076169,0.05732763,121.79,121.75,3.34540665]
[1766574079260,3.51,121.84,121.77,3.29]
[1766574079462,3.51,121.84,121.79,3.29]
[1766574080272,0.05596788,121.83,121.8,0.05694788]
[1766574080766,0.05596788,121.83,121.8,3.34694788]
[1766574088374,3.51,121.86,121.8,3.34694788]
[1766574088575,3.51,121.88,121.8,3.34694788]
[1766574088772,3.51,121.88,121.8,3.29]
[1766574089380,0.05306637,121.85,121.83,0.05708265]
[1766574094273,3.45,121.9,121.83,3.38708265]
[1766574094487,3.45,121.9,121.83,3.33]
[1766574095381,0.05180709,121.88,121.85,0.06018619]
[1766574096390,3.31180709,121.88,121.85,0.06018619]
[1766574099289,1.2697812,121.87,121.82,3.35]
[1766574099490,4.5297812,121.87,121.82,3.35]
[1766574100187,4.5297812,121.87,121.83,0.05422325]
[1766574104196,0.05180709,121.88,121.83,3.40422325]
[1766574110996,3.26,121.87,121.83,0.05422325]
[1766574113192,0.05180709,121.88,121.83,3.40422325]
[1766574120402,4.5297812,121.91,121.83,3.40422325]
[1766574120599,4.5297812,121.91,121.83,3.35]
[1766574120799,4.5297812,121.89,121.83,3.35]
[1766574121005,1.2697812,121.89,121.83,3.35]
[1766574121516,0.0532991,121.87,121.85,0.05348512]
[1766574121806,0.0032991,121.87,121.85,3.57348512]
[1766574129321,3.51,121.9,121.85,3.57348512]
[1766574130319,0.05526324,121.89,121.85,3.57348512]
[1766574138628,3.51,121.92,121.85,3.57348512]
[1766574139730,0.06283073,121.9,121.85,3.57348512]
[1766574139927,3.57283073,121.9,121.86,0.05270677]
[1766574147437,0.06283073,121.9,121.86,3.57270677]
[1766574154447,0.00283073,121.9,121.86,3.57270677]
[1766574155137,6.02244953,121.95,121.86,3.57270677]
[1766574155447,9.31244953,121.96,121.86,3.52]
[1766574155644,3.29,121.96,121.86,3.52]
[1766574156241,3.29,121.96,121.91,3.28]
[1766574157248,0.0571622,121.95,121.91,3.28]
[1766574164255,3.37,121.98,121.91,3.28]
[1766574165137,0.05526658,121.96,121.93,3.40376246]
[1766574166846,1.98044072,122.0,121.93,3.40376246]
[1766574166847,3.37,122.0,121.93,3.40376246]
[1766574167047,5.35044072,122.0,121.93,3.40376246]
[1766574167248,3.37,121.99,121.93,3.40376246]
[1766574168241,3.37,122.01,121.93,3.40376246]
[1766574168442,3.37,122.01,121.96,0.05301972]
[1766574171752,3.37,122.02,121.96,3.40301972]
[1766574171957,5.35044072,122.04,121.96,3.40301972]
[1766574172258,5.35044072,122.04,121.99,0.0581231]
[1766574172453,5.35044072,122.04,122.0,0.06032948]
[1766574172958,3.37,122.04,122.0,0.06032948]
[1766574176462,3.37,122.04,121.97,3.35]
[1766574176762,3.37,122.02,121.9,3.35]
[1766574177265,1.98044072,122.01,121.9,3.35]
[1766574177560,0.05644077,121.97,121.94,0.05194149]
[1766574180865,3.42644077,121.97,121.91,3.35]
[1766574181164,3.37,121.97,121.91,3.35]
[1766574181367,3.47,121.96,121.91,3.35]
[1766574181663,3.47,121.94,121.87,8.37]
[1766574181959,0.05348048,121.92,121.89,0.05408002]
[1766574182164,3.47,121.96,121.89,3.38408002]
[1766574182368,3.47,121.96,121.89,3.33]
[1766574183064,0.05562826,121.94,121.91,0.05293935]
[1766574186963,3.52562826,121.94,121.91,0.05293935]
[1766574193066,3.47,121.93,121.86,4.5962751]
[1766574193958,3.52863411,121.91,121.88,0.05487017]
[1766574195160,3.52863411,121.91,121.82,3.33]
[1766574195366,3.47,121.91,121.83,4.5962751]
[1766574196170,0.05976157,121.88,121.86,0.05344183]
[1766574196772,3.52976157,121.88,121.83,3.33]
[1766574197769,3.52976157,121.88,121.84,0.06102271]
[1766574197973,3.52976157,121.88,121.84,1.32729781]
[1766574198560,0.05976157,121.88,121.84,4.65729781]
[1766574199976,3.47,121.9,121.86,1.2662751]
[1766574201063,0.05616684,121.89,121.87,0.06065989]
[1766574204678,3.47,121.92,121.87,0.06065989]
[1766574204873,3.47,121.92,121.86,1.2662751]
[1766574205080,3.47,121.92,121.86,4.5962751]
[1766574205576,3.47,121.92,121.88,1.2662751]
[1766574205782,3.47,121.95,121.9,1.2662751]
[1766574206580,3.47,121.95,121.9,4.5962751]
[1766574206882,0.05215755,121.94,121.91,0.05464861]
[1766574211983,3.43215755,121.94,121.91,0.00464861]
[1766574213080,3.43215755,121.94,121.91,1.27092371]
[1766574221989,3.43215755,121.94,121.91,0.00464861]
[1766574246309,0.05215755,121.94,121.91,0.00464861]
[1766574248921,3.49215755,121.94,121.91,0.00464861]
[1766574255024,0.05215755,121.94,121.91,0.00464861]
[1766574255524,3.49215755,121.94,121.91,0.00464861]
[1766574260238,0.05215755,121.94,121.91,0.00464861]
[1766574263827,3.49215755,121.94,121.91,0.00464861]
[1766574278534,0.05215755,121.94,121.91,0.00464861]
[1766574278840,3.46,121.96,121.91,0.00464861]
[1766574279234,7.63483679,122.01,121.91,0.00464861]
[1766574279235,3.46,121.98,121.91,0.00464861]
[1766574279433,3.46,121.98,121.9,3.53]
[1766574279640,0.05742314,121.95,121.93,0.05666663]
[1766574279845,0.05756543,121.95,121.93,0.05881614]
[1766574284737,3.51756543,121.95,121.89,3.53]
[1766574284942,3.46,121.95,121.89,3.53]
[1766574285833,0.05170641,121.93,121.91,0.05824456]
[1766574286234,3.51170641,121.93,121.87,3.53]
[1766574286437,3.46,121.93,121.87,3.53]
[1766574287451,0.06275516,121.91,121.89,0.06048715]
[1766574290847,3.46,121.93,121.89,0.06048715]
[1766574291048,3.46,121.96,121.89,3.59048715]
[1766574291248,3.46,121.96,121.89,3.53]
[1766574291844,3.52245447,121.94,121.91,0.06139273]
[1766574302260,3.52245447,121.94,121.91,0.00139273]
[1766574304560,3.52245447,121.94,121.84,3.49]
[1766574304859,3.37,121.92,121.84,3.49]
[1766574305060,3.37,121.9,121.84,3.49]
[1766574305550,0.05231842,121.88,121.86,0.05890163]
[1766574305754,6.0072058,121.92,121.86,0.05890163]
[1766574305755,3.37,121.92,121.86,3.54890163]
[1766574306652,0.06315103,121.9,121.86,3.54890163]
[1766574307961,0.06315103,121.9,121.86,4.81552501]
[1766574309762,3.43315103,121.9,121.86,0.05890163]
[1766574314385,3.43315103,121.9,121.83,1.26662338]
[1766574314684,3.43315103,121.9,121.83,4.75662338]
[1766574315066,3.43315103,121.9,121.84,3.49]
[1766574315268,3.43315103,121.9,121.86,0.05547948]
[1766574317077,3.43315103,121.9,121.82,3.49]
[1766574317278,3.37,121.9,121.82,3.49]
[1766574318379,3.43118918,121.87,121.85,0.00291642]
[1766574318680,3.37,121.87,121.82,3.49]
[1766574319389,0.0517902,121.86,121.83,0.05842366]
[1766574323188,3.37,121.9,121.83,4.81504704]
[1766574323486,3.37,121.9,121.84,3.49]
[1766574324195,0.05910807,121.88,121.86,0.05909878]
[1766574325398,3.37,121.91,121.86,3.54909878]
[1766574325695,3.37,121.91,121.86,3.49]
[1766574326594,0.05966562,121.9,121.87,0.05645138]
[1766574328991,0.05966562,121.9,121.87,3.54645138]
[1766574336207,3.29,121.95,121.88,3.56]
[1766574336412,3.29,121.97,121.91,4.82662338]
[1766574336599,3.29,121.99,121.92,3.56]
[1766574337300,0.05262422,121.97,121.94,0.05609273]
[1766574338199,0.00262422,121.97,121.94,3.61609273]
[1766574338395,3.29,122.01,121.95,4.82662338]
[1766574339110,3.29,122.01,121.96,3.56]
[1766574339295,0.05206206,122.0,121.97,0.05235929]
[1766574341412,0.00206206,122.0,121.97,4.87898267]
[1766574342102,3.29,122.03,121.97,4.87898267]
[1766574342713,3.29,122.03,121.98,3.56]
[1766574342900,3.29,122.06,121.99,1.26662338]
[1766574343098,3.31007621,122.04,122.01,0.0577613]
[1766574344311,3.31007621,122.04,121.98,3.56]
[1766574345407,3.31007621,122.04,122.0,0.05222903]
[1766574361826,0.02007621,122.04,122.0,3.38222903]
[1766574366021,3.37007621,122.04,122.0,0.05222903]
[1766574367421,0.02007621,122.04,122.0,3.38222903]
[1766574371231,5.93981148,122.1,122.0,3.38222903]
[1766574371232,298.0,122.19,122.0,3.38222903]
[1766574371438,3.35,122.1,122.0,3.33]
[1766574371735,3.35,122.08,122.0,3.33]
[1766574371933,1.97509146,122.07,122.0,3.33]
[1766574372134,3.35,122.06,122.0,3.33]
[1766574372334,0.05729312,122.04,122.02,0.06228667]
[1766574373335,3.35,122.08,122.02,0.06228667]
[1766574373636,3.35,122.08,122.01,3.33]
[1766574374427,3.35,122.08,122.03,0.06094443]
[1766574378543,3.35,122.08,122.03,3.39094443]
[1766574379441,3.35,122.1,122.03,3.39094443]
[1766574379736,3.35,122.1,122.05,3.39271868]
[1766574380337,5.96319932,122.12,122.05,3.39271868]
[1766574380542,9.31319932,122.12,122.05,3.39271868]
[1766574380744,3.35,122.12,122.05,3.39271868]
[1766574381344,3.35,122.11,122.05,3.39271868]
[1766574382536,3.35,122.13,122.05,3.39271868]
[1766574382741,9.32776057,122.13,122.08,0.05983754]
[1766574383348,3.35,122.13,122.08,0.05983754]
[1766574386155,3.35,122.13,122.08,3.38983754]
[1766574388652,3.35,122.15,122.08,3.38983754]
[1766574388859,3.35,122.15,122.1,0.06096533]
[1766574390054,1.97509146,122.14,122.1,0.06096533]
[1766574390251,5.32509146,122.14,122.1,0.06096533]
[1766574390551,3.35,122.13,122.08,3.33]
[1766574391352,0.06143352,122.12,122.09,0.05356452]
[1766574394560,0.06143352,122.12,122.08,3.33]
[1766574394763,2.03652498,122.12,121.99,65.81509146]
[1766574395061,1.97509146,122.1,121.97,96.72]
[1766574395558,1.97509146,122.1,122.02,0.06216076]
[1766574395559,0.06277934,122.05,122.02,0.06216076]
[1766574395752,0.00277934,122.05,121.97,96.72]
[1766574395951,3.35,122.13,121.97,121.35]
[1766574396156,1.97509146,122.11,121.97,123.32509146]
[1766574396359,1.97509146,122.11,121.97,133.43843991]
[1766574396750,3.56,122.12,122.04,3.49]
[1766574397749,3.56,122.12,122.07,0.05292089]
[1766574398363,5.53509146,122.11,122.05,3.49]
[1766574399357,0.05292089,122.09,122.07,0.05333122]
[1766574399556,0.05292089,122.09,122.05,3.49]
[1766574400560,0.05292089,122.09,122.06,0.05481556]
[1766574401158,3.61292089,122.09,122.02,3.49]
[1766574401466,3.56,122.09,122.02,3.49]
[1766574402063,5.53509146,122.11,122.04,0.06211528]
[1766574402263,0.06220865,122.07,122.04,3.55211528]
[1766574406765,3.56,122.09,122.04,3.55211528]
[1766574408073,0.00310826,122.08,122.04,3.55211528]
[1766574408274,3.56,122.12,122.04,3.49]
[1766574409076,0.04885902,122.09,122.07,0.05235051]
[1766574410176,3.56,122.12,122.07,0.05235051]
[1766574412185,3.56,122.17,122.07,3.54235051]
[1766574412383,3.56,122.17,122.11,0.05638539]
[1766574413471,3.56,122.17,122.07,3.49]
[1766574414579,0.05638539,122.13,122.11,0.05423114]
[1766574417984,0.05638539,122.13,122.07,5.46509146]
[1766574418283,0.05638539,122.13,122.08,3.49]
[1766574418483,3.56,122.14,122.08,3.49]
[1766574418983,0.06235549,122.12,122.1,0.05565317]
[1766574421475,3.56,122.14,122.1,0.05565317]
[1766574422575,3.60826104,122.13,122.1,0.05565317]
[1766574422788,0.04826104,122.13,122.1,0.06032919]
[1766574429883,3.60826104,122.13,122.1,0.06032919]
[1766574431892,3.60826104,122.13,122.1,0.00032919]
[1766574438696,3.56,122.11,122.04,3.37]
[1766574438888,3.56,122.09,122.02,3.37]
[1766574439684,3.56,122.07,122.02,3.37]
[1766574439893,0.05872662,122.06,122.03,0.05885925]
[1766574443594,3.61872662,122.06,122.03,0.05885925]
[1766574444098,4.88073316,122.06,122.03,0.05885925]
[1766574445696,3.56,122.05,122.0,3.37]
[1766574445893,4.82200654,122.05,121.98,87.75]
[1766574446090,3.56,122.07,121.99,3.37]
[1766574446285,3.56,122.07,121.99,4.63200654]
[1766574446491,3.56,122.07,122.0,3.37]
[1766574446701,0.0549433,122.05,122.02,0.05537269]
[1766574448595,3.6149433,122.05,122.02,0.05537269]
[1766574448800,3.6149433,122.05,121.98,87.75]
[1766574449600,3.6149433,122.05,121.99,3.37]
[1766574449804,3.6149433,122.05,122.01,0.05815689]
[1766574457013,3.6149433,122.05,121.98,84.38]
[1766574457796,4.87694984,122.05,122.0,0.05416813]
[1766574458105,3.35,122.04,122.0,0.00416813]
[1766574464312,3.35,122.02,121.95,3.48]
[1766574464515,3.35,122.02,121.93,3.48]
[1766574465520,0.05185492,121.99,121.96,0.06265643]
[1766574469613,1.26200654,122.05,121.96,0.06265643]
[1766574469815,7.59158174,122.11,121.96,3.48]
[1766574469816,1.26200654,122.06,121.96,3.48]
[1766574470826,0.06224012,122.02,122.0,0.00235114]
[1766574471026,24.63,122.1,122.02,0.00200654]
[1766574471221,24.63,122.1,122.01,3.48]
[1766574471413,1.26200654,122.15,122.06,0.00200654]
[1766574471617,1.26200654,122.14,122.05,0.00200654]
[1766574471820,3.35,122.1,122.05,0.00409212]
[1766574472926,3.35,122.1,122.05,0.00308152]
[1766574474031,3.35,122.1,122.06,0.0015891]
[1766574474232,3.35,122.1,122.07,0.00200654]
[1766574475232,0.05460738,122.11,122.07,0.00200654]
[1766574475822,0.05460738,122.11,122.09,0.00200654]
[1766574476020,0.05460738,122.11,122.07,1.26200654]
[1766574476224,5.93719014,122.13,122.07,1.26200654]
[1766574476225,5.939596,122.13,122.07,0.00200654]
[1766574477041,0.06145027,122.11,122.09,0.05527397]
[1766574477227,0.06145027,122.11,122.02,3.48]
[1766574477432,5.939596,122.13,122.07,0.00200654]
[1766574478223,0.06066206,122.11,122.06,0.00200654]
[1766574479133,0.06066206,122.11,122.07,0.061372]
[1766574479328,0.06066206,122.11,122.07,0.001372]
[1766574479527,0.06066206,122.11,122.05,1.26200654]
[1766574479724,26.05564523,122.13,122.02,3.48]
[1766574479922,24.63,122.11,121.93,3.48]
[1766574480126,24.63,122.11,122.02,1.26200654]
[1766574480326,5.95054776,122.1,122.02,1.26200654]
[1766574480523,0.05501207,122.07,122.05,0.00335422]
[1766574485230,0.05501207,122.07,122.02,6.076e-05]
[1766574485638,7.43251207,122.07,122.02,6.076e-05]
[1766574485837,7.43251207,122.07,122.01,3.44]
[1766574486044,7.43251207,122.07,122.04,6.54e-06]
[1766574486241,7.3765,122.09,122.04,6.54e-06]
[1766574487345,7.43785323,122.08,122.05,0.06143969]
[1766574492332,7.3758,122.1,122.05,3.50143969]
[1766574493442,7.3747,122.12,122.06,1.97364917]
[1766574493633,229.362,122.16,122.07,3.44]
[1766574493838,114.663,122.17,122.07,3.44]
[1766574494539,0.06053228,122.13,122.11,0.00357252]
[1766574497444,0.06053228,122.13,122.06,1.97364917]
[1766574497752,0.06053228,122.13,122.06,5.41364917]
[1766574498541,7.43423228,122.13,122.08,0.06171718]
[1766574504461,0.06053228,122.13,122.08,0.06171718]
[1766574506052,7.43423228,122.13,122.08,0.06171718]
[1766574516761,0.06053228,122.13,122.08,3.63171718]
[1766574518668,0.06053228,122.13,122.08,11.00821718]
[1766574518860,0.06053228,122.13,122.08,3.63171718]
[1766574529976,7.43413228,122.13,122.08,0.06171718]
[1766574530174,7.43413228,122.13,122.08,3.63171718]
[1766574534868,0.00053228,122.13,122.08,11.00791718]
[1766574535076,0.00053228,122.13,122.09,3.57]
[1766574535667,0.00053228,122.13,122.09,10.946]
[1766574535875,0.00053228,122.13,122.1,3.57]
[1766574537068,0.00053228,122.13,122.08,3.63171718]
[1766574539678,7.37413228,122.13,122.08,3.63171718]
[1766574541578,114.70473228,122.13,122.08,0.06171718]
[1766574541880,114.7205,122.11,122.01,3.48]
[1766574542072,114.7205,122.11,122.02,3.48]
[1766574542073,7.3773,122.07,122.02,3.48]
[1766574542869,0.05682505,122.06,122.03,0.0577039]
[1766574543977,5.99478498,122.1,122.03,3.5377039]
[1766574544282,116.66574917,122.14,122.03,3.5377039]
[1766574544481,5.99257996,122.13,122.04,3.48]
[1766574544982,0.05978077,122.1,122.07,0.05577141]
[1766574552485,7.3741,122.13,122.07,3.53577141]
[1766574553594,0.06161437,122.11,122.07,3.53577141]
[1766574553782,0.06161437,122.11,122.08,3.53269233]
[1766574553984,7.373,122.14,122.08,3.53269233]
[1766574554988,0.06288947,122.12,122.08,3.53269233]
[1766574555188,7.3722,122.16,122.1,3.48]
[1766574556192,0.06284782,122.14,122.12,0.06205529]
[1766574561998,7.43624782,122.14,122.12,0.06205529]
[1766574563201,0.06284782,122.14,122.12,0.06205529]
[1766574564495,0.06284782,122.14,122.12,0.00205529]
[1766574564894,0.06284782,122.14,122.08,3.48]
[1766574565890,0.06284782,122.14,122.1,0.06243876]
[1766574566098,0.06284782,122.14,122.1,0.00243876]
[1766574566296,1.26225798,122.13,122.07,96.38]
[1766574566890,7.3748,122.11,122.07,96.38]
[1766574567199,0.05354288,122.1,122.08,0.05417971]
[1766574568202,7.42904288,122.1,122.08,0.05417971]
[1766574570403,7.42904288,122.1,122.04,3.48]
[1766574571401,7.42904288,122.1,122.06,0.0565888]
[1766574572108,7.3761,122.09,122.06,0.0565888]
[1766574573113,7.3767,122.08,122.02,3.42]
[1766574574123,0.05839086,122.06,122.04,0.05737741]
[1766574576429,7.3758,122.1,122.04,3.39737741]
[1766574577422,0.05924716,122.08,122.04,3.39737741]
[1766574580126,7.3746,122.12,122.05,3.34]
[1766574580526,7.3746,122.12,122.06,3.34]
[1766574580723,7.3733,122.14,122.06,3.34]
[1766574581134,0.05757803,122.11,122.09,0.05910061]
[1766574581817,7.3733,122.14,122.09,0.05910061]
[1766574582931,0.05256203,122.13,122.09,0.05910061]
[1766574591741,7.42636203,122.13,122.09,0.05910061]
[1766574591938,8.68862001,122.13,122.09,0.05910061]
[1766574593944,7.3742,122.12,122.09,0.05910061]
[1766574594144,0.05256203,122.13,122.09,3.39910061]
[1766574594944,7.42626203,122.13,122.09,0.05910061]
[1766574595848,8.68852001,122.13,122.09,0.05910061]
[1766574599247,96.7,122.17,122.09,3.39910061]
[1766574599438,1.26225798,122.17,122.09,3.34]
[1766574599643,1.26225798,122.15,122.09,3.34]
[1766574600251,0.05916031,122.13,122.11,0.0533516]
[1766574611965,1.32141829,122.13,122.06,3.43]
[1766574612869,1.32141829,122.13,122.08,3.48462255]
[1766574613062,0.05244274,122.12,122.08,3.48462255]
[1766574618581,7.42664274,122.12,122.08,3.48462255]
[1766574628586,7.3748,122.11,122.08,0.05462255]
[1766574628782,2.02548516,122.12,122.08,0.05462255]
[1766574629584,7.3757,122.1,122.08,0.05462255]
[1766574630887,7.42694274,122.12,122.08,0.05462255]
[1766574634697,0.05244274,122.12,122.08,3.41462255]
[1766574648206,7.42684274,122.12,122.08,3.41462255]
[1766574668823,0.05244274,122.12,122.05,3.09]
[1766574669923,0.05244274,122.12,122.07,0.06302931]
[1766574670614,7.3755,122.1,122.07,0.06302931]
[1766574673420,7.42704274,122.12,122.07,0.06302931]
[1766574673611,0.05244274,122.12,122.07,3.15302931]
[1766574674323,7.42664274,122.12,122.07,3.15302931]
[1766574674718,0.05244274,122.12,122.07,3.15302931]
[1766574696658,0.00244274,122.12,122.08,3.45]
[1766574700259,1.26250777,122.15,122.09,3.45]
[1766574700841,7.3723,122.16,122.1,3.45]
[1766574701358,0.06286891,122.14,122.12,3.51198643]
[1766574701956,1.26250777,122.17,122.12,3.51198643]
[1766574703053,0.05590929,122.16,122.12,3.51198643]
[1766574704355,13.62498626,122.18,122.12,3.51198643]
[1766574705157,6.25398626,122.18,122.13,3.45]
[1766574705656,4.99147849,122.18,122.13,3.45]
[1766574706357,0.05984675,122.17,122.13,3.45]
[1766574707357,1.32235452,122.17,122.13,3.45]
[1766574708750,0.05984675,122.17,122.13,3.45]
[1766574711757,1.42147849,122.18,122.14,3.45]
[1766574712151,0.00147849,122.18,122.14,3.45]
[1766574712557,0.00147849,122.18,122.15,3.50915995]
[1766574712958,1.26250777,122.2,122.15,3.50915995]
[1766574713154,8.63110777,122.22,122.15,3.50915995]
[1766574713866,0.0517877,122.2,122.15,3.50915995]
[1766574718460,1.26250777,122.19,122.15,3.50915995]
[1766574719963,1.26250777,122.19,122.15,0.05915995]
[1766574720153,8.63260777,122.19,122.15,0.05915995]
[1766574720372,1.26250777,122.17,122.13,3.45]
[1766574721455,0.05625033,122.16,122.14,0.05322538]
[1766574721652,0.05625033,122.16,122.09,96.38]
[1766574722867,0.05625033,122.16,122.11,0.05322455]
[1766574723770,0.05625033,122.16,122.12,3.45]
[1766574725371,4.90250777,122.15,122.11,0.05322455]
[1766574725972,12.27490777,122.15,122.11,0.05322455]
[1766574727574,1.26250777,122.13,122.04,114.7769]
[1766574727769,4.90250777,122.13,122.06,3.45]
[1766574728570,0.05876177,122.11,122.08,3.50190014]
[1766574735663,4.90250777,122.14,122.08,3.50190014]
[1766574735867,4.90250777,122.14,122.08,3.45]
[1766574736577,0.05914641,122.12,122.1,0.05931154]
[1766574736781,114.6678,122.17,122.1,0.05931154]
[1766574736782,1.26250777,122.16,122.11,3.45]
[1766574737873,0.05954064,122.15,122.12,0.05425703]
[1766574745482,0.05954064,122.15,122.07,7.3767]
[1766574745689,3.64,122.16,122.07,7.3767]
[1766574746487,0.05444274,122.13,122.1,0.05591263]
[1766574753389,7.3723,122.16,122.1,3.42591263]
[1766574754091,10.7623,122.16,122.1,3.42591263]
[1766574754487,0.0528963,122.14,122.1,3.42591263]
[1766574759690,10.9958963,122.14,122.1,0.05591263]
[1766574761592,10.9958963,122.14,122.1,3.28591263]
[1766574766102,3.6228963,122.14,122.1,3.28591263]
[1766574766295,0.0528963,122.14,122.1,3.28591263]
[1766574826056,4.79233373,122.13,122.08,3.5]
[1766574826256,1.26233373,122.11,122.08,3.5]
[1766574827049,1.32401881,122.11,122.06,3.5]
[1766574827254,4.79233373,122.11,122.06,3.5]
[1766574828258,0.05883525,122.1,122.07,0.05595394]
[1766574833166,0.05883525,122.1,122.07,3.55595394]
[1766574836867,10.78561927,122.13,122.07,3.55595394]
[1766574837064,12.16613373,122.13,122.07,3.5]
[1766574837968,0.06236273,122.11,122.09,0.0558348]
[1766574838163,0.06236273,122.11,122.08,3.5]
[1766574839367,0.06236273,122.11,122.08,3.56215541]
[1766574839770,0.06236273,122.11,122.08,0.06215541]
[1766574840765,4.85469646,122.11,122.06,3.5]
[1766574841462,7.3754,122.1,122.06,3.5]
[1766574841768,3.3,122.1,122.07,0.05847332]
[1766574842069,3.35949,122.1,122.05,3.33]
[1766574842370,3.3,122.1,122.05,3.33]
[1766574843175,0.0623798,122.09,122.06,0.06071493]
[1766574845778,0.0623798,122.09,122.06,3.39071493]
[1766574849263,0.0023798,122.09,122.06,3.39071493]
[1766574854875,3.3023798,122.09,122.06,0.06071493]
[1766574859474,10.6783798,122.09,122.06,0.00071493]
[1766574859679,3.3,122.08,122.06,0.00071493]
[1766574861083,7.3783798,122.09,122.06,0.00071493]
[1766574861084,0.0023798,122.09,122.06,3.33071493]
[1766574861383,0.0023798,122.09,122.06,0.00071493]
[1766574862783,3.3023798,122.09,122.06,0.00071493]
[1766574865981,3.3,122.08,122.02,3.33]
[1766574867084,0.05228338,122.06,122.04,0.05534491]
[1766574871181,3.49228338,122.06,122.01,10.7103]
[1766574871578,3.49228338,122.06,122.01,3.33]
[1766574872186,3.49228338,122.06,122.02,0.06238156]
[1766574900005,3.49228338,122.06,122.02,3.51238156]
[1766574900195,1.97425684,122.12,122.02,3.51238156]
[1766574900399,3.27,122.11,122.03,3.45]
[1766574901201,0.06206766,122.08,122.06,0.05910813]
[1766574904415,3.48206766,122.08,122.03,7.3792]
[1766574905300,3.48206766,122.08,122.04,0.05253013]
[1766574913517,3.48206766,122.08,122.04,0.00253013]
[1766574914613,3.42,122.06,122.04,0.00253013]
[1766574916523,3.42,122.05,121.98,57.19453013]
[1766574917424,0.05680987,122.03,122.0,0.05622066]
[1766574917819,0.05680987,122.03,121.98,14.63275079]
[1766574918423,0.05680987,122.03,121.99,3.35]
[1766574918620,0.05680987,122.03,122.0,3.35]
[1766574918825,0.05680987,122.03,122.0,3.40210718]
[1766574919325,0.05680987,122.03,122.0,10.78340718]
[1766574929232,0.05680987,122.03,122.0,0.05210718]
[1766574934145,3.51680987,122.03,122.0,0.00210718]
[1766574938538,0.05680987,122.03,122.0,0.00210718]
[1766574940851,0.05680987,122.03,122.0,3.50210718]
[1766574942752,0.05680987,122.03,122.0,10.88350718]
[1766574944646,3.57,122.05,122.01,3.5]
[1766574945053,108.97128076,122.07,122.01,3.5]
[1766574945254,3.57,122.06,122.01,3.5]
[1766574945648,0.06162471,122.05,122.02,0.05786053]
[1766574949759,0.06162471,122.05,122.02,3.55786053]
[1766574953356,4.83408076,122.07,122.02,3.55786053]
[1766574954359,0.05564626,122.06,122.02,3.55786053]
[1766574964461,3.44564626,122.06,122.02,0.05786053]
[1766574964665,12.03248076,122.05,122.0,3.32]
[1766574964861,3.39,122.04,121.98,3.32]
[1766574965162,8.64368076,122.03,121.98,3.32]
[1766574965558,0.05576,122.02,121.99,0.06097303]
[1766574967361,0.05576,122.02,121.95,57.24477303]
[1766574967974,0.05576,122.02,121.97,7.3832]
[1766574968365,0.05576,122.02,121.98,0.06152655]
[1766574969268,0.05576,122.02,121.98,0.83152655]
[1766574969668,0.05576,122.02,121.95,15.45949958]
[1766574970660,0.05576,122.02,121.97,7.44403373]
[1766574971159,0.05576,122.02,121.98,7.3826]
[1766574972465,3.44576,122.02,121.97,0.06083373]
[1766574973573,3.44576,122.02,121.97,7.44403373]
[1766574982070,4.70984076,122.02,121.97,7.44403373]
[1766574983991,3.44576,122.02,121.97,7.44403373]
[1766574988387,3.44576,122.02,121.97,0.06083373]
[1766575000313,3.44576,122.02,121.93,72.33223373]
[1766575000614,3.39,122.02,121.93,72.33223373]
[1766575001408,0.05479299,121.99,121.93,72.33223373]
[1766575001715,0.05479299,121.99,121.96,7.3838]
[1766575002210,10.7096,122.03,121.97,7.3832]
[1766575002413,96.78,122.02,121.97,7.3832]
[1766575002614,100.11,122.02,121.97,7.3832]
[1766575003218,0.05457459,122.01,121.98,0.05869033]
[1766575005015,0.05457459,122.01,121.94,72.31909033]
[1766575005617,0.05457459,122.01,121.97,7.3832]
[1766575011522,0.05457459,122.01,121.98,7.3824]
[1766575011722,100.11,122.04,121.98,7.3824]
[1766575012022,100.11,122.04,121.96,114.8584]
[1766575012322,100.11,122.04,121.97,7.3828]
[1766575012819,0.0582698,122.02,121.99,0.05564612]
[1766575019733,0.0582698,122.02,121.95,114.8652]